fUST/lending_fUST_20250713
["ID","MTS","AMOUNT","RATE_DAILY","PERIOD"]
[371705506,1752395456084,-209.0,0.0001988,2]
[371705507,1752395456095,-500.0,0.00019894,2]
[371705508,1752395456106,-500.0,0.00019894,2]
[371705509,1752395456116,-500.0,0.00019894,2]
[371705510,1752395456125,-2288.35449485,0.000199,2]
[371705511,1752395456135,-500.0,0.00019921,2]
[371705512,1752395456144,-500.0,0.00019921,2]
[371705513,1752395456154,-261.26192034,0.00019921,2]
[371705514,1752395456163,-215.0738,0.0001993,2]
[371705515,1752395456173,-620.45188498,0.00019948,2]
[371705516,1752395456184,-500.0,0.00019948,2]
[371705517,1752395456194,-1700.0,0.00019968,2]
[371705518,1752395456203,-500.0,0.00019976,2]
[371705519,1752395456213,-246254.89233206,0.00019989,2]
[371705520,1752395456223,-460.0,0.0002,2]
[371705521,1752395456232,-1632.0,0.0002,2]
[371705522,1752395456242,-300.2710838,0.0002,2]
[371705523,1752395456251,-550.9,0.0002,2]
[371705524,1752395456349,-1746.533893,0.0002,2]
[371705525,1752395456359,-469.83,0.0002,2]
[371705526,1752395456369,-15000.23978458,0.0002,2]
[371705527,1752395456378,-510.43,0.0002,2]
[371705528,1752395456387,-1834.23,0.0002,2]
[371705529,1752395456397,-549.51,0.0002,2]
[371705530,1752395456409,-460.0,0.0002,2]
[371705531,1752395456419,-2012.8,0.0002,2]
[371705532,1752395456431,-460.0,0.0002,2]
[371705533,1752395456443,-460.0,0.0002,2]
[371705534,1752395456452,-600.18,0.0002,2]
[371705535,1752395456462,-460.0,0.0002,2]
[371705536,1752395456472,-606.6,0.0002,2]
[371705537,1752395456482,-244.26,0.0002,2]
[371705538,1752395456493,-460.0,0.0002,2]
[371705539,1752395456506,-792.28,0.0002,2]
[371705540,1752395456517,-1429.18,0.0002,2]
[371705541,1752395456527,-1422.74,0.0002,2]
[371705542,1752395456538,-3939.41,0.0002,2]
[371705543,1752395456548,-460.0,0.0002,2]
[371705544,1752395456557,-567.8,0.0002,2]
[371705545,1752395456567,-460.0,0.0002,2]
[371705546,1752395456578,-1190.47,0.0002,2]
[371705547,1752395456587,-735.13,0.0002,2]
[371705548,1752395456597,-927.31,0.0002,2]
[371705549,1752395456606,-1547.79,0.0002,2]
[371705550,1752395456616,-17539.85972354,0.0002,2]
[371705551,1752395456625,-460.0,0.0002,2]
[371705552,1752395456635,-11635.1705481,0.0002,2]
[371705553,1752395456644,-907.51,0.0002,2]
[371705554,1752395456654,-529.16,0.0002,2]
[371705555,1752395456663,-460.0,0.0002,2]
[371705556,1752395456673,-2635.83,0.0002,2]
[371705557,1752395456683,-3615.51,0.0002,2]
[371705558,1752395456693,-3553.96,0.0002,2]
[371705559,1752395456703,-624.12,0.0002,2]
[371705560,1752395456713,-460.0,0.0002,2]
[371705561,1752395456723,-1179.8,0.0002,2]
[371705562,1752395456733,-460.0,0.0002,2]
[371705563,1752395456743,-1700.57,0.0002,2]
[371705564,1752395456753,-2189.03,0.0002,2]
[371705565,1752395456762,-4000.0,0.0002,4]
[371705566,1752395456772,-160.0,0.0002,3]
[371705567,1752395456781,-460.0,0.0002,2]
[371705568,1752395456791,-1056.17,0.0002,2]
[371705569,1752395456801,-682.72,0.0002,2]
[371705570,1752395456810,-223.95,0.0002,2]
[371705571,1752395456820,-707.94,0.0002,2]
[371705572,1752395456829,-273.54425928,0.00020003,2]
[371705573,1752395456839,-8063.17852122,0.00020003,2]
[371705574,1752395456848,-1500.0,0.00020068,2]
[371705575,1752395456858,-503.94399516,0.00020068,2]
[371705576,1752395456867,-1500.0,0.00020068,2]
[371705577,1752395456876,-197.32,0.00020112,2]
[371705578,1752395456886,-155.9,0.00020147,3]
[371705579,1752395456895,-476.653,0.00020187,2]
[371705580,1752395456905,-463.384407,0.00020187,2]
[371705581,1752395456914,-209.0,0.00020206,2]
[371705582,1752395456924,-209.0,0.00020208,2]
[371705583,1752395456934,-209.0,0.00020208,2]
[371705584,1752395456943,-560.0,0.0002025,2]
[371705585,1752395456953,-209.0,0.00020254,2]
[371705586,1752395456962,-460.0,0.00020273,2]
[371705587,1752395456972,-550.9,0.00020273,2]
[371705588,1752395456981,-469.83,0.00020273,2]
[371705589,1752395456991,-510.43,0.00020273,2]
[371705590,1752395457001,-1834.23,0.00020273,2]
[371705591,1752395457010,-549.51,0.00020273,2]
[371705592,1752395457021,-460.0,0.00020273,2]
[371705593,1752395457030,-2012.8,0.00020273,2]
[371705594,1752395457040,-460.0,0.00020273,2]
[371705595,1752395457049,-460.0,0.00020273,2]
[371705596,1752395457058,-600.18,0.00020273,2]
[371705597,1752395457067,-460.0,0.00020273,2]
[371705598,1752395457076,-606.6,0.00020273,2]
[371705599,1752395457086,-460.0,0.00020273,2]
[371705600,1752395457095,-792.28,0.00020273,2]
[371705601,1752395457104,-1429.18,0.00020273,2]
[371705602,1752395457114,-1422.74,0.00020273,2]
[371705603,1752395457124,-3939.41,0.00020273,2]
[371705604,1752395457134,-460.0,0.00020273,2]
[371705605,1752395457144,-567.8,0.00020273,2]
[371705606,1752395457153,-460.0,0.00020273,2]
[371705607,1752395457163,-1190.47,0.00020273,2]
[371705608,1752395457173,-735.13,0.00020273,2]
[371705609,1752395457183,-927.31,0.00020273,2]
[371705610,1752395457193,-1547.79,0.00020273,2]
[371705611,1752395457203,-460.0,0.00020273,2]
[371705612,1752395457212,-907.51,0.00020273,2]
[371705613,1752395457222,-529.16,0.00020273,2]
[371705614,1752395457232,-460.0,0.00020273,2]
[371705615,1752395457242,-2635.83,0.00020273,2]
[371705616,1752395457252,-3615.51,0.00020273,2]
[371705617,1752395457262,-3553.96,0.00020273,2]
[371705618,1752395457272,-624.12,0.00020273,2]
[371705619,1752395457282,-460.0,0.00020273,2]
[371705620,1752395457293,-1179.8,0.00020273,2]
[371705621,1752395457302,-460.0,0.00020273,2]
[371705622,1752395457312,-1700.57,0.00020273,2]
[371705623,1752395457322,-2189.03,0.00020273,2]
[371705624,1752395457332,-460.0,0.00020273,2]
[371705625,1752395457342,-1056.17,0.00020273,2]
[371705626,1752395457351,-682.72,0.00020273,2]
[371705627,1752395457361,-707.94,0.00020273,2]
[371705628,1752395457371,-8063.17852122,0.00020314,3]
[371705629,1752395457380,-209.0,0.00020347,2]
[371705630,1752395457390,-1407.19,0.000204,2]
[371705631,1752395457400,-4582.75,0.000204,2]
[371705632,1752395457411,-30047.66,0.000204,2]
[371705633,1752395457420,-836.956561,0.000204,3]
[371705634,1752395457430,-214.29528141,0.000204,3]
[371705635,1752395457440,-836.956561,0.0002048,2]
[371705636,1752395457450,-1000.0,0.000205,2]
[371705637,1752395457460,-9282.64678542,0.000205,2]
[371705638,1752395457471,-460.0,0.00020547,2]
[371705639,1752395457481,-151.0,0.00020547,2]
[371705640,1752395457492,-550.9,0.00020547,2]
[371705641,1752395457506,-469.83,0.00020547,2]
[371705642,1752395457516,-510.43,0.00020547,2]
[371705643,1752395457527,-1834.23,0.00020547,2]
[371705644,1752395457539,-549.51,0.00020547,2]
[371705645,1752395457550,-460.0,0.00020547,2]
[371705646,1752395457560,-2012.8,0.00020547,2]
[371705647,1752395457571,-460.0,0.00020547,2]
[371705648,1752395457581,-460.0,0.00020547,2]
[371705649,1752395457591,-600.18,0.00020547,2]
[371705650,1752395457600,-151.0,0.00020547,2]
[371705651,1752395457610,-460.0,0.00020547,2]
[371705652,1752395457620,-606.6,0.00020547,2]
[371705653,1752395457629,-460.0,0.00020547,2]
[371705654,1752395457639,-792.28,0.00020547,2]
[371705655,1752395457648,-1429.18,0.00020547,2]
[371705656,1752395457658,-1422.74,0.00020547,2]
[371705657,1752395457668,-3939.41,0.00020547,2]
[371705658,1752395457677,-460.0,0.00020547,2]
[371705659,1752395457688,-567.8,0.00020547,2]
[371705660,1752395457699,-496.11,0.00020547,2]
[371705661,1752395457709,-1190.47,0.00020547,2]
[371705662,1752395457719,-735.13,0.00020547,2]
[371705663,1752395457728,-927.31,0.00020547,2]
[371705664,1752395457737,-1547.79,0.00020547,2]
[371705665,1752395457747,-460.0,0.00020547,2]
[371705666,1752395457757,-907.51,0.00020547,2]
[371705667,1752395457766,-529.16,0.00020547,2]
[371705668,1752395457776,-460.0,0.00020547,2]
[371705669,1752395457785,-2635.83,0.00020547,2]
[371705670,1752395457795,-3615.51,0.00020547,2]
[371705671,1752395457804,-3553.96,0.00020547,2]
[371705672,1752395457814,-624.12,0.00020547,2]
[371705673,1752395457824,-460.0,0.00020547,2]
[371705674,1752395457834,-1179.8,0.00020547,2]
[371705675,1752395457844,-460.0,0.00020547,2]
[371705676,1752395457854,-1700.57,0.00020547,2]
[371705677,1752395457864,-2189.03,0.00020547,2]
[371705678,1752395457874,-460.0,0.00020547,2]
[371705679,1752395457884,-1056.17,0.00020547,2]
[371705680,1752395457893,-682.72,0.00020547,2]
[371705681,1752395457904,-707.94,0.00020547,2]
[371705682,1752395457914,-2017.29046175,0.00020616,2]
[371705683,1752395457925,-2000.0,0.00020616,2]
[371705684,1752395457937,-155.9,0.00020622,4]
[371705685,1752395457947,-8063.17852122,0.00020624,3]
[371705686,1752395457957,-480.0,0.00020798,2]
[371705687,1752395457967,-151.0,0.000208,4]
[371705688,1752395457979,-460.0,0.00020821,2]
[371705689,1752395457989,-550.9,0.00020821,2]
[371705690,1752395457999,-469.83,0.00020821,2]
[371705691,1752395458011,-510.43,0.00020821,2]
[371705692,1752395458021,-1834.23,0.00020821,2]
[371705693,1752395458031,-549.51,0.00020821,2]
[371705694,1752395458041,-460.0,0.00020821,2]
[371705695,1752395458051,-2012.8,0.00020821,2]
[371705696,1752395458060,-460.0,0.00020821,2]
[371705697,1752395458070,-460.0,0.00020821,2]
[371705698,1752395458079,-600.18,0.00020821,2]
[371705699,1752395458089,-460.0,0.00020821,2]
[371705700,1752395458100,-606.6,0.00020821,2]
[371705701,1752395458110,-460.0,0.00020821,2]
[371705702,1752395458203,-792.28,0.00020821,2]
[371705703,1752395458212,-1429.18,0.00020821,2]
[371705704,1752395458223,-1422.74,0.00020821,2]
[371705705,1752395458232,-3939.41,0.00020821,2]
[371705706,1752395458242,-460.0,0.00020821,2]
[371705707,1752395458252,-567.8,0.00020821,2]
[371705708,1752395458262,-1190.47,0.00020821,2]
[371705709,1752395458271,-735.13,0.00020821,2]
[371705710,1752395458281,-927.31,0.00020821,2]
[371705711,1752395458291,-1547.79,0.00020821,2]
[371705712,1752395458301,-460.0,0.00020821,2]
[371705713,1752395458311,-907.51,0.00020821,2]
[371705714,1752395458321,-529.16,0.00020821,2]
[371705715,1752395458331,-460.0,0.00020821,2]
[371705716,1752395458340,-2635.83,0.00020821,2]
[371705717,1752395458350,-3615.51,0.00020821,2]
[371705718,1752395458361,-3553.96,0.00020821,2]
[371705719,1752395458371,-624.12,0.00020821,2]
[371705720,1752395458381,-460.0,0.00020821,2]
[371705721,1752395458391,-1179.8,0.00020821,2]
[371705722,1752395458401,-460.0,0.00020821,2]
[371705723,1752395458411,-1700.57,0.00020821,2]
[371705724,1752395458420,-2189.03,0.00020821,2]
[371705725,1752395458430,-524.29268096,0.00020821,2]
[371705726,1752395458440,-1056.17,0.00020821,2]
[371705727,1752395458449,-682.72,0.00020821,2]
[371705728,1752395458459,-707.94,0.00020821,2]
[371705729,1752395458469,-230.21,0.00020885,2]
[371705730,1752395458479,-8063.17852122,0.00020934,4]
[371705731,1752395458489,-1000.0,0.00021,2]
[371705732,1752395458501,-1700.0,0.00021064,2]
[371705733,1752395458510,-151.0,0.00021064,2]
[371705734,1752395458520,-202.73553631,0.00021094,2]
[371705735,1752395458529,-460.0,0.00021095,2]
[371705736,1752395458538,-550.9,0.00021095,2]
[371705737,1752395458548,-469.83,0.00021095,2]
[371705738,1752395458558,-1834.23,0.00021095,2]
[371705739,1752395458569,-510.43,0.00021095,2]
[371705740,1752395458580,-549.51,0.00021095,2]
[371705741,1752395458589,-569.43,0.00021095,2]
[371705742,1752395458599,-2012.8,0.00021095,2]
[371705743,1752395458609,-460.0,0.00021095,2]
[371705744,1752395458619,-460.0,0.00021095,2]
[371705745,1752395458629,-600.18,0.00021095,2]
[371705746,1752395458639,-460.0,0.00021095,2]
[371705747,1752395458648,-606.6,0.00021095,2]
[371705748,1752395458657,-792.28,0.00021095,2]
[371705749,1752395458667,-1429.18,0.00021095,2]
[371705750,1752395458677,-1422.74,0.00021095,2]
[371705751,1752395458687,-3939.41,0.00021095,2]
[371705752,1752395458696,-460.0,0.00021095,2]
[371705753,1752395458706,-567.8,0.00021095,2]
[371705754,1752395458716,-1190.47,0.00021095,2]
[371705755,1752395458726,-735.13,0.00021095,2]
[371705756,1752395458735,-927.31,0.00021095,2]
[371705757,1752395458745,-1547.79,0.00021095,2]
[371705758,1752395458755,-460.0,0.00021095,2]
[371705759,1752395458765,-907.51,0.00021095,2]
[371705760,1752395458775,-529.16,0.00021095,2]
[371705761,1752395458784,-460.0,0.00021095,2]
[371705762,1752395458794,-2635.83,0.00021095,2]
[371705763,1752395458804,-3615.51,0.00021095,2]
[371705764,1752395458814,-3553.96,0.00021095,2]
[371705765,1752395458824,-624.12,0.00021095,2]
[371705766,1752395458834,-460.0,0.00021095,2]
[371705767,1752395458844,-1179.8,0.00021095,2]
[371705768,1752395458854,-460.0,0.00021095,2]
[371705769,1752395458864,-1700.57,0.00021095,2]
[371705770,1752395458874,-2189.03,0.00021095,2]
[371705771,1752395458884,-1056.17,0.00021095,2]
[371705772,1752395458895,-682.72,0.00021095,2]
[371705773,1752395458906,-707.94,0.00021095,2]
[371705774,1752395458915,-155.9,0.00021098,4]
[371705775,1752395458924,-159.6475778,0.00021123,2]
[371705776,1752395458936,-301.6664248,0.00021123,2]
[371705777,1752395458946,-359.1135621,0.00021123,2]
[371705778,1752395458956,-165.1345751,0.00021123,2]
[371705779,1752395458965,-159.6475778,0.00021123,2]
[371705780,1752395458975,-153.0,0.00021123,2]
[371705781,1752395458986,-576.5770022,0.00021123,2]
[371705782,1752395458996,-576.5770021,0.00021123,2]
[371705783,1752395459007,-576.5770021,0.00021123,2]
[371705784,1752395459019,-153.0,0.00021123,2]
[371705785,1752395459029,-2511.45775859,0.00021164,2]
[371705786,1752395459039,-8063.17852122,0.00021245,4]
[371705787,1752395459049,-223.0315306,0.00021299,2]
[371705788,1752395459058,-307.56831972,0.00021369,2]
[371705789,1752395459068,-550.9,0.00021369,2]
[371705790,1752395459079,-469.83,0.00021369,2]
[371705791,1752395459090,-1834.23,0.00021369,2]
[371705792,1752395459100,-510.43,0.00021369,2]
[371705793,1752395459111,-549.51,0.00021369,2]
[371705794,1752395459121,-2012.8,0.00021369,2]
[371705795,1752395459131,-460.0,0.00021369,2]
[371705796,1752395459142,-460.0,0.00021369,2]
[371705797,1752395459152,-600.18,0.00021369,2]
[371705798,1752395459163,-460.0,0.00021369,2]
[371705799,1752395459174,-606.6,0.00021369,2]
[371705800,1752395459184,-792.28,0.00021369,2]
[371705801,1752395459194,-1429.18,0.00021369,2]
[371705802,1752395459205,-1422.74,0.00021369,2]
[371705803,1752395459214,-3939.41,0.00021369,2]
[371705804,1752395459223,-562.73195447,0.00021369,2]
[371705805,1752395459233,-567.8,0.00021369,2]
[371705806,1752395459243,-1190.47,0.00021369,2]
[371705807,1752395459252,-735.13,0.00021369,2]
[371705808,1752395459262,-927.31,0.00021369,2]
[371705809,1752395459272,-1547.79,0.00021369,2]
[371705810,1752395459281,-460.0,0.00021369,2]
[371705811,1752395459291,-907.51,0.00021369,2]
[371705812,1752395459302,-529.16,0.00021369,2]
[371705813,1752395459312,-460.0,0.00021369,2]
[371705814,1752395459322,-2635.83,0.00021369,2]
[371705815,1752395459331,-3615.51,0.00021369,2]
[371705816,1752395459341,-3553.96,0.00021369,2]
[371705817,1752395459351,-624.12,0.00021369,2]
[371705818,1752395459360,-460.0,0.00021369,2]
[371705819,1752395459370,-1179.8,0.00021369,2]
[371705820,1752395459380,-460.0,0.00021369,2]
[371705821,1752395459391,-1700.57,0.00021369,2]
[371705822,1752395459401,-2189.03,0.00021369,2]
[371705823,1752395459412,-1056.17,0.00021369,2]
[371705824,1752395459422,-682.72,0.00021369,2]
[371705825,1752395459432,-707.94,0.00021369,2]
[371705826,1752395459443,-823.0,0.00021441,2]
[371705827,1752395459453,-160.0,0.00021472,3]
[371705828,1752395459463,-1000.0,0.000215,2]
[371705829,1752395459473,-620.74551448,0.000215,4]
[371705830,1752395459483,-2393.32872065,0.000215,2]
[371705831,1752395459495,-8063.17852122,0.00021555,5]
[371705832,1752395459506,-155.9,0.00021573,5]
[371705833,1752395459515,-1407.19,0.000216,2]
[371705834,1752395459524,-4582.75,0.000216,2]
[371705835,1752395459534,-30047.66,0.000216,2]
[371705836,1752395459544,-406.95041309,0.00021616,2]
[371705837,1752395459554,-157.0505323,0.00021616,2]
[371705838,1752395459563,-550.9,0.00021643,2]
[371705839,1752395459574,-469.83,0.00021643,2]
[371705840,1752395459584,-225.536147,0.00021643,2]
[371705841,1752395459595,-1834.23,0.00021643,2]
[371705842,1752395459605,-510.43,0.00021643,2]
[371705843,1752395459615,-549.51,0.00021643,2]
[371705844,1752395459627,-419.237995,0.00021643,2]
[371705845,1752395459638,-2012.8,0.00021643,2]
[371705846,1752395459650,-419.237995,0.00021643,2]
[371705847,1752395459661,-460.0,0.00021643,2]
[371705848,1752395459672,-460.0,0.00021643,2]
[371705849,1752395459682,-600.18,0.00021643,2]
[371705850,1752395459692,-460.0,0.00021643,2]
[371705851,1752395459702,-606.6,0.00021643,2]
[371705852,1752395459713,-792.28,0.00021643,2]
[371705853,1752395459724,-1429.18,0.00021643,2]
[371705854,1752395459733,-1422.74,0.00021643,2]
[371705855,1752395459744,-3939.41,0.00021643,2]
[371705856,1752395459755,-567.8,0.00021643,2]
[371705857,1752395459766,-1190.47,0.00021643,2]
[371705858,1752395459777,-735.13,0.00021643,2]
[371705859,1752395459788,-927.31,0.00021643,2]
[371705860,1752395459798,-1547.79,0.00021643,2]
[371705861,1752395459809,-460.0,0.00021643,2]
[371705862,1752395459819,-907.51,0.00021643,2]
[371705863,1752395459829,-529.16,0.00021643,2]
[371705864,1752395459840,-235.08701847,0.00021643,2]
[371705865,1752395459850,-2635.83,0.00021643,2]
[371705866,1752395459938,-3615.51,0.00021643,2]
[371705867,1752395459948,-3553.96,0.00021643,2]
[371705868,1752395459958,-624.12,0.00021643,2]
[371705869,1752395459969,-454.57,0.00021643,2]
[371705870,1752395459979,-1179.8,0.00021643,2]
[371705871,1752395459988,-460.0,0.00021643,2]
[371705872,1752395459997,-1700.57,0.00021643,2]
[371705873,1752395460007,-2189.03,0.00021643,2]
[371705874,1752395460016,-1056.17,0.00021643,2]
[371705875,1752395460026,-682.72,0.00021643,2]
[371705876,1752395460036,-707.94,0.00021643,2]
[371705877,1752395460046,-263.1,0.00021659,2]
[371705878,1752395460055,-160.0,0.00021682,3]
[371705879,1752395460065,-52918.55791643,0.000217,2]
[371705880,1752395460075,-406.95041309,0.00021726,2]
[371705881,1752395460085,-180.25957379,0.00021775,2]
[371705882,1752395460094,-160.0,0.00021787,4]
[371705883,1752395460103,-406.95041309,0.00021836,2]
[371705884,1752395460113,-1000.0,0.0002184,5]
[371705885,1752395460123,-8063.17852122,0.00021866,6]
[371705886,1752395460133,-104761.16295434,0.00021916,2]
[371705887,1752395460142,-550.9,0.00021917,2]
[371705888,1752395460152,-469.83,0.00021917,2]
[371705889,1752395460162,-1834.23,0.00021917,2]
[371705890,1752395460172,-510.43,0.00021917,2]
[371705891,1752395460182,-549.51,0.00021917,2]
[371705892,1752395460192,-2012.8,0.00021917,2]
[371705893,1752395460202,-460.0,0.00021917,2]
[371705894,1752395460211,-460.0,0.00021917,2]
[371705895,1752395460221,-600.18,0.00021917,2]
[371705896,1752395460231,-460.0,0.00021917,2]
[371705897,1752395460241,-606.6,0.00021917,2]
[371705898,1752395460250,-792.28,0.00021917,2]
[371705899,1752395460260,-1429.18,0.00021917,2]
[371705900,1752395460270,-1422.74,0.00021917,2]
[371705901,1752395460280,-3939.41,0.00021917,2]
[371705902,1752395460290,-567.8,0.00021917,2]
[371705903,1752395460299,-735.13,0.00021917,2]
[371705904,1752395460309,-927.31,0.00021917,2]
[371705905,1752395460319,-1547.79,0.00021917,2]
[371705906,1752395460328,-1190.47,0.00021917,2]
[371705907,1752395460338,-460.0,0.00021917,2]
[371705908,1752395460348,-907.51,0.00021917,2]
[371705909,1752395460357,-529.16,0.00021917,2]
[371705910,1752395460367,-2635.83,0.00021917,2]
[371705911,1752395460376,-3615.51,0.00021917,2]
[371705912,1752395460386,-3553.96,0.00021917,2]
[371705913,1752395460396,-937.82,0.00021917,2]
[371705914,1752395460406,-937.82,0.00021917,2]
[371705915,1752395460416,-937.82,0.00021917,2]
[371705916,1752395460426,-937.82,0.00021917,2]
[371705917,1752395460435,-937.82,0.00021917,2]
[371705918,1752395460446,-937.82,0.00021917,2]
[371705919,1752395460454,-937.82,0.00021917,2]
[371705920,1752395460463,-937.82,0.00021917,2]
[371705921,1752395460472,-937.82,0.00021917,2]
[371705922,1752395460481,-937.82,0.00021917,2]
[371705923,1752395460490,-937.82,0.00021917,2]
[371705924,1752395460504,-937.82,0.00021917,2]
[371705925,1752395460514,-624.12,0.00021917,2]
[371705926,1752395460523,-937.82,0.00021917,2]
[371705927,1752395460532,-937.82,0.00021917,2]
[371705928,1752395460543,-937.82,0.00021917,2]
[371705929,1752395460553,-937.82,0.00021917,2]
[371705930,1752395460563,-937.82,0.00021917,2]
[371705931,1752395460573,-937.82,0.00021917,2]
[371705932,1752395460583,-937.82,0.00021917,2]
[371705933,1752395460593,-937.82,0.00021917,2]
[371705934,1752395460603,-937.82,0.00021917,2]
[371705935,1752395460612,-1179.8,0.00021917,2]
[371705936,1752395460623,-460.0,0.00021917,2]
[371705937,1752395460634,-1700.57,0.00021917,2]
[371705938,1752395460643,-2189.03,0.00021917,2]
[371705939,1752395460654,-1056.17,0.00021917,2]
[371705940,1752395460665,-682.72,0.00021917,2]
[371705941,1752395460675,-707.94,0.00021917,2]
[371705942,1752395460685,-153.0,0.00021918,2]
[371705943,1752395460696,-153.0,0.00021918,2]
[371705944,1752395460706,-153.0,0.00021918,2]
[371705945,1752395460715,-153.0,0.00021918,2]
[371705946,1752395460725,-153.0,0.00021918,2]
[371705947,1752395460735,-153.0,0.00021918,2]
[371705948,1752395460746,-153.0,0.00021918,2]
[371705949,1752395460756,-153.0,0.00021918,2]
[371705950,1752395460767,-153.0,0.00021918,2]
[371705951,1752395460777,-153.0,0.00021918,2]
[371705952,1752395460788,-153.0,0.00021918,2]
[371705953,1752395460798,-153.0,0.00021918,2]
[371705954,1752395460808,-153.0,0.00021918,2]
[371705955,1752395460818,-153.0,0.00021918,2]
[371705956,1752395460828,-153.0,0.00021918,2]
[371705957,1752395460837,-153.0,0.00021918,2]
[371705958,1752395460847,-153.0,0.00021918,2]
[371705959,1752395460856,-153.0,0.00021918,2]
[371705960,1752395460866,-153.0,0.00021918,2]
[371705961,1752395460876,-153.0,0.00021918,2]
[371705962,1752395460886,-153.0,0.00021918,2]
[371705963,1752395460895,-153.0,0.00021918,2]
[371705964,1752395460905,-153.0,0.00021918,2]
[371705965,1752395460915,-153.0,0.00021918,2]
[371705966,1752395460924,-153.0,0.00021918,2]
[371705967,1752395460933,-153.0,0.00021918,2]
[371705968,1752395460943,-153.0,0.00021918,2]
[371705969,1752395460952,-153.0,0.00021918,2]
[371705970,1752395460962,-153.0,0.00021918,2]
[371705971,1752395460971,-153.0,0.00021918,2]
[371705972,1752395460980,-153.0,0.00021918,2]
[371705973,1752395460990,-153.0,0.00021918,2]
[371705974,1752395460999,-153.0,0.00021918,2]
[371705975,1752395461008,-153.0,0.00021918,2]
[371705976,1752395461018,-153.0,0.00021918,2]
[371705977,1752395461027,-153.0,0.00021918,2]
[371705978,1752395461036,-153.0,0.00021918,2]
[371705979,1752395461045,-153.0,0.00021918,2]
[371705980,1752395461054,-153.0,0.00021918,2]
[371705981,1752395461063,-153.0,0.00021918,2]
[371705982,1752395461073,-153.0,0.00021918,2]
[371705983,1752395461082,-153.0,0.00021918,2]
[371705984,1752395461092,-153.0,0.00021918,2]
[371705985,1752395461101,-153.0,0.00021918,2]
[371705986,1752395461111,-153.0,0.00021918,2]
[371705987,1752395461120,-153.0,0.00021918,2]
[371705988,1752395461131,-153.0,0.00021918,2]
[371705989,1752395461140,-153.0,0.00021918,2]
[371705990,1752395461150,-153.0,0.00021918,2]
[371705991,1752395461159,-153.0,0.00021918,2]
[371705992,1752395461169,-153.0,0.00021918,2]
[371705993,1752395461178,-153.0,0.00021918,2]
[371705994,1752395461188,-153.0,0.00021918,2]
[371705995,1752395461198,-153.0,0.00021918,2]
[371705996,1752395461208,-153.0,0.00021918,2]
[371705997,1752395461219,-153.0,0.00021918,2]
[371705998,1752395461229,-153.0,0.00021918,2]
[371705999,1752395461239,-153.0,0.00021918,2]
[371706000,1752395461249,-153.0,0.00021918,2]
[371706001,1752395461259,-153.0,0.00021918,2]
[371706002,1752395461268,-153.0,0.00021918,2]
[371706003,1752395461278,-153.0,0.00021918,2]
[371706004,1752395461288,-153.0,0.00021918,2]
[371706005,1752395461298,-153.0,0.00021918,2]